{"text_format":"1","workbook":"xlsx","n_sheets":4,"sheets":["Εισαγωγή","Tρωτότητα","Ανάλυση διακινδύνευσης","Δεδομένα"],"not_rendered":{"charts":0,"images":1,"macros":1,"external_links":0,"defined_names":4,"comments":2,"pivot_tables":0},"unopened":[],"bounds":{"document_bytes":16777216,"sheet_cells":100000,"rows_first":2000,"rows_last":500,"rows_between":2000,"halvings":0,"cell_chars":16384,"cell_head_chars":4096},"cells_cut":0,"cells_raw":0,"read":"whole","date_system":"1900"}

{"sheet":"Εισαγωγή","index":0,"n_rows":20,"n_cols":5,"rows_kept":20,"cut":false,"hidden":false,"merged":[[18,2,18,3],[19,2,19,3],[1,0,1,1],[2,0,2,1],[1,2,1,19],[2,2,2,19],[5,2,11,19],[14,2,16,19]]}
[]
["ΔΙΚΑΙΟΥΧΟΣ:"]
["ΕΡΓΟ:"]
[]
[null,null,"Περιγραφή"]
[null,null,"Το παρόν αρχείο έχει κατασκευαστεί για να βοηθήσει δικαιούχους έργων ΕΣΠΑ να εκπονήσουν εκθέσεις κλιματικής ανθεκτικότητας, για όσα Έργα απαιτείται μια τέτοια έκθεση. \nΣτο φύλλο \"Τρωτότητα\" ο χρήστης μπορεί να υπολογίσει την τρωτότητα του Έργου με βάση την ευαισθησία και την έκθεση αυτού. Το φύλλο \"Ανάλυση διακινδύνευσης\" απαιτείται να συμπληρωθεί μόνο εφόσον απαιτείται λεπτομερής ανάλυση της κλιματικής προσαρμογής του Έργου, σύμφωνα με τα αποτελέσματα του ελέγχου τρωτότητας. Στο φύλλο \"Data management\" δίνονται οι βαθμολογίες (ποιοτικές και αριθμητικές) και οι επεξηγήσεις αυτών, οι οποίες χρησιμοιποιούνται για τον έλεγχο της τρωτότητας και της διακινδύνευσης.\nΤα κελιά με ελαφρά κίντρινο χρώμα συμπληρώνονται από το χρήστη. Τα κελιά με ελαφρά πράσινο χρώμα δίνουν αποτελέσματα υπολογισμών και είναι προστατευμένα για να αποφευχθούν τυχαίες αλλαγές στους υπολογισμούς.\nΤο παρόν αρχείο συνοδεύεται από Οδηγίες Χρήσης, στις οποίες μπορούν να αναζητηθούν περισσότερες λεπτομέρειες για τη δομή και τη χρήση του."]
[]
[]
[]
[]
[]
[]
[]
[null,null,"Αποποίηση Ευθυνών"]
[null,null,"Το παρόν αρχείο έχει σκοπό την υποβοήθηση της εκπόνησης εκθέσεων κλιματικής ανθεκτικότητας και δεν υποκαθιστά τις ίδιες τις εκθέσεις. Το παρόν αρχείο έχει δοκιμαστεί για την λειτουργία του αλλά δεν αποκλείεται να περιέχει τυχαία λάθη. Η εφαρμογή του αρχείου δεν είναι υποχρεωτική. Οι δικαιούχοι μπορούν να υπολογίσουν την κλιματική τρωτότητα και την κλιματική ανθεκτικότητα των Έργων τους με άλλους τρόπους αν το επιθυμούν. "]
[]
[]
[]
[null,null,"Έκδοση:",null,"1.0"]
[null,null,"Ημερομηνία:",null,"02/2023"]

{"sheet":"Tρωτότητα","index":1,"n_rows":36,"n_cols":11,"rows_kept":36,"cut":false,"hidden":false,"merged":[[1,2,1,6],[1,10,2,10],[1,7,1,9],[3,0,14,0],[0,2,0,10],[15,0,30,0],[31,0,35,0],[0,0,0,1],[1,0,2,0],[1,1,2,1]]}
["Ανάλυση τρωτότητας για το Έργο:",null,{"$f":"IF(ISBLANK(Εισαγωγή!$C$3),\"\",Εισαγωγή!$C$3)","v":""}]
["Ομάδα","Πηγή Κινδύνου","Ευαισθησία",null,null,null,null,"Έκθεση",null,null,"Τρωτότητα"]
[null,null,"Κατασκευή","Λειτουργία","Προϊόντα Υπηρεσίες","Ένταξη στην περιοχή","Σύνολο Ευαισθησίας","Υφιστάμενες συνθήκες","Μελλοντικές συνθήκες","Σύνολο Έκθεσης"]
["Οξεις κίνδυνοι","Καύσωνας ",null,null,null,null,{"$f":"IF(OR(C4=\"Υψηλή\",D4=\"Υψηλή\",E4=\"Υψηλή\",F4=\"Υψηλή\"),\"Υψηλή\",IF(OR(C4=\"Μέτρια\",D4=\"Μέτρια\",E4=\"Μέτρια\",F4=\"Μέτρια\"),\"Μέτρια\",\"Χαμηλή\"))","v":"Χαμηλή"},null,null,{"$f":"IF(OR(H4=\"Υψηλή\",I4=\"Υψηλή\"),\"Υψηλή\",IF(OR(H4=\"Μέτρια\",I4=\"Μέτρια\"),\"Μέτρια\",\"Χαμηλή\"))","v":"Χαμηλή"},{"$f":"IF(AND(G4=\"Υψηλή\",J4=\"Υψηλή\"),\"Υψηλή\",IF(OR(AND(G4=\"Υψηλή\",J4=\"Μέτρια\"),AND(G4=\"Μέτρια\",J4=\"Υψηλή\")),\"Υψηλή\",IF(OR(AND(G4=\"Υψηλή\",J4=\"Χαμηλή\"),AND(G4=\"Χαμηλή\",J4=\"Υψηλή\")),\"Μέτρια\",IF(AND(G4=\"Μέτρια\",J4=\"Μέτρια\"),\"Μέτρια\",\"Χαμηλή\"))))","v":"Χαμηλή"}]
[null,"Κύμα ψύχους",null,null,null,null,{"$f":"IF(OR(C5=\"Υψηλή\",D5=\"Υψηλή\",E5=\"Υψηλή\",F5=\"Υψηλή\"),\"Υψηλή\",IF(OR(C5=\"Μέτρια\",D5=\"Μέτρια\",E5=\"Μέτρια\",F5=\"Μέτρια\"),\"Μέτρια\",\"Χαμηλή\"))","v":"Χαμηλή"},null,null,"Χαμηλή","Χαμηλή"]
[null,"Παγετός (Αριθμός Ημερών με ΤΝ<0)",null,null,null,null,"Χαμηλή",null,null,{"$f":"IF(OR(H6=\"Υψηλή\",I6=\"Υψηλή\"),\"Υψηλή\",IF(OR(H6=\"Μέτρια\",I6=\"Μέτρια\"),\"Μέτρια\",\"Χαμηλή\"))","v":"Χαμηλή"},{"$f":"IF(AND(G6=\"Υψηλή\",J6=\"Υψηλή\"),\"Υψηλή\",IF(OR(AND(G6=\"Υψηλή\",J6=\"Μέτρια\"),AND(G6=\"Μέτρια\",J6=\"Υψηλή\")),\"Υψηλή\",IF(OR(AND(G6=\"Υψηλή\",J6=\"Χαμηλή\"),AND(G6=\"Χαμηλή\",J6=\"Υψηλή\")),\"Μέτρια\",IF(AND(G6=\"Μέτρια\",J6=\"Μέτρια\"),\"Μέτρια\",\"Χαμηλή\"))))","v":"Χαμηλή"}]
[null,"Δασική πυρκαγιά ",null,null,null,null,"Χαμηλή",null,null,"Χαμηλή","Χαμηλή"]
[null,"Κυκλώνας, Iσχυρές Καταιγίδες, τυφώνας",null,null,null,null,"Χαμηλή",null,null,"Χαμηλή","Χαμηλή"]
[null,"Θύελλα (περιλαμβάνονται  χιονοθύελλες, θύελλες σκόνης)",null,null,null,null,"Χαμηλή",null,null,"Χαμηλή","Χαμηλή"]
[null,"Ανεμοστρόβιλος/Θυελλώδεις Άνεμοι",null,null,null,null,"Χαμηλή",null,null,"Χαμηλή","Χαμηλή"]
[null,"Ξηρασία ",null,null,null,null,"Χαμηλή",null,null,"Χαμηλή","Χαμηλή"]
[null,"Ισχυρός υετός (βροχή, χαλάζι, χιόνι/πάγος)",null,null,null,null,"Χαμηλή",null,null,"Χαμηλή","Χαμηλή"]
[null,"Πλημμύρα (σε παράκτιες περιοχές, ποτάμια, λόγω βροχής, υπόγεια ύδατα)",null,null,null,null,"Χαμηλή",null,null,"Χαμηλή","Χαμηλή"]
[null,"Κατολίσθηση/Διάβρωση του εδάφους",null,null,null,null,"Χαμηλή",null,null,"Χαμηλή","Χαμηλή"]
[null,"Καθίζηση",null,null,null,null,"Χαμηλή",null,null,"Χαμηλή","Χαμηλή"]
["Χρόνιοι κίνδυνοι","Μεταβολή της μέσης θερμοκρασίας του αέρα ",null,null,null,null,"Χαμηλή",null,null,"Χαμηλή","Χαμηλή"]
[null,"Αστική θερμονησίδα",null,null,null,null,"Χαμηλή",null,null,"Χαμηλή","Χαμηλή"]
[null,"Θερμική καταπόνηση ",null,null,null,null,"Χαμηλή",null,null,"Χαμηλή","Χαμηλή"]
[null,"Μεταβλητότητα της θερμοκρασίας",null,null,null,null,"Χαμηλή",null,null,"Χαμηλή","Χαμηλή"]
[null,"Μεταβολή της ηλιακής ακτινοβολίας ",null,null,null,null,"Χαμηλή",null,null,"Χαμηλή","Χαμηλή"]
[null,"Μεταβολή χαρακτηριστικών των ανέμων",null,null,null,null,"Χαμηλή",null,null,"Χαμηλή","Χαμηλή"]
[null,"Μεταβολή χαρακτηριστικών και τύπων υετού (βροχή, χαλάζι, χιόνι/πάγος)",null,null,null,null,"Χαμηλή",null,null,"Χαμηλή","Χαμηλή"]
[null,"Μεταβλητότητα υετού ή υδρολογική μεταβλητότητα",null,null,null,null,"Χαμηλή",null,null,"Χαμηλή","Χαμηλή"]
[null,"Μεταβολή της μέσης θερμοκρασίας του νερού σε υδάτινα σώματα",null,null,null,null,"Χαμηλή",null,null,{"$f":"IF(OR(H24=\"Υψηλή\",I24=\"Υψηλή\"),\"Υψηλή\",IF(OR(H24=\"Μέτρια\",I24=\"Μέτρια\"),\"Μέτρια\",\"Χαμηλή\"))","v":"Χαμηλή"},{"$f":"IF(AND(G24=\"Υψηλή\",J24=\"Υψηλή\"),\"Υψηλή\",IF(OR(AND(G24=\"Υψηλή\",J24=\"Μέτρια\"),AND(G24=\"Μέτρια\",J24=\"Υψηλή\")),\"Υψηλή\",IF(OR(AND(G24=\"Υψηλή\",J24=\"Χαμηλή\"),AND(G24=\"Χαμηλή\",J24=\"Υψηλή\")),\"Μέτρια\",IF(AND(G24=\"Μέτρια\",J24=\"Μέτρια\"),\"Μέτρια\",\"Χαμηλή\"))))","v":"Χαμηλή"}]
[null,"Οξίνιση/αλατότητα του θαλάσσιου ύδατος",null,null,null,null,"Χαμηλή",null,null,"Χαμηλή","Χαμηλή"]
[null,"Διείσδυση αλμυρού νερού, υφαλμύρινση επιφανειακών & υπόγειων υδάτων",null,null,null,null,"Χαμηλή",null,null,"Χαμηλή","Χαμηλή"]
[null,"Άνοδος της στάθμης της θάλασσας",null,null,null,null,"Χαμηλή",null,null,"Χαμηλή","Χαμηλή"]
[null,"Διαθεσιμότητα και καταπόνηση υδάτινων πόρων",null,null,null,null,"Χαμηλή",null,null,"Χαμηλή","Χαμηλή"]
[null,"Διάβρωση των ακτών",null,null,null,null,"Χαμηλή",null,null,"Χαμηλή","Χαμηλή"]
[null,"Υποβάθμιση του εδάφους, μεταβολή της περιεκτικότητας αλάτων, ερημοποίηση",null,null,null,null,"Χαμηλή",null,null,"Χαμηλή","Χαμηλή"]
[null,"Αλλαγές στη διάρκεια των καλλιεργητικών περιόδων",null,null,null,null,"Χαμηλή",null,null,"Χαμηλή","Χαμηλή"]
["Άλλοι κίνδυνοι","Παρακαλώ προσθέστε…",null,null,null,null,"Χαμηλή",null,null,"Χαμηλή","Χαμηλή"]
[null,"Παρακαλώ προσθέστε…",null,null,null,null,"Χαμηλή",null,null,"Χαμηλή","Χαμηλή"]
[null,"Παρακαλώ προσθέστε…",null,null,null,null,"Χαμηλή",null,null,"Χαμηλή","Χαμηλή"]
[null,"Παρακαλώ προσθέστε…",null,null,null,null,"Χαμηλή",null,null,"Χαμηλή","Χαμηλή"]
[null,"Παρακαλώ προσθέστε…",null,null,null,null,"Χαμηλή",null,null,"Χαμηλή","Χαμηλή"]

{"sheet":"Ανάλυση διακινδύνευσης","index":2,"n_rows":36,"n_cols":250,"rows_kept":36,"cut":false,"hidden":false,"merged":[[1,8,1,9],[1,7,2,7],[1,1,2,1],[0,1,0,6],[1,4,1,5],[1,2,2,2],[1,3,2,3],[1,0,2,0],[1,6,2,6]]}
["Ανάλυση διακινδύνευσης για το Έργο:",{"$f":"IF(ISBLANK(Εισαγωγή!$C$3),\"\",Εισαγωγή!$C$3)","v":""},null,null,null,null,null,null,null,null,null,null,null,null,null,null,null,null,null,null,null,null,null,null,null,null,null,null,null,null,null,null,null,null,null,null,null,null,null,null,null,null,null,null,null,null,null,null,null,null,null,null,null,null,null,null,null,null,null,null,null,null,null,null,null,null,null,null,null,null,null,null,null,null,null,null,null,null,null,null,null,null,null,null,null,null,null,null,null,null,null,null,null,null,null,null,null,null,null,null,null,null,null,null,null,null,null,null,null,null,null,null,null,null,null,null,null,null,null,null,null,null,null,null,null,null,null,null,null,null,null,null,null,null,null,null,null,null,null,null,null,null,null,null,null,null,null,null,null,null,null,null,null,null,null,null,null,null,null,null,null,null,null,null,null,null,null,null,null,null,null,null,null,null,null,null,null,null,null,null,null,null,null,null,null,null,null,null,null,null,null,null,null,null,null,null,null,null,null,null,null,null,null,null,null,null,null,null,null,null,null,null,null,null,null,null,null,null,null,null,null,null,null,null,null,null,null,null,null,null,null,null,null,null,null,null,null,null,null,null,null,null,null,null,null,null,null,null,null,"© IPPC 2022"]
["Πηγή Κινδύνου","Τρωτότητα","Πιθανότητα εμφάνισης","Κλίμακα συνεπειών","Εγγενής κίνδυνος",null,"Μέτρα προσαρμογής","Μείωση κινδύνου","Υπολειπόμενος κίνδυνος"]
[null,null,null,null,"Βαθμολογία","Περιγραφή",null,null,"Βαθμολογία","Περιγραφή"]
[{"$f":"Tρωτότητα!B4","v":"Καύσωνας "},{"$f":"Tρωτότητα!K4","v":"Χαμηλή"},null,null,{"$f":"IFERROR((VLOOKUP(C4,Δεδομένα!$A$10:$B$14,2,FALSE))*(VLOOKUP(D4,Δεδομένα!$A$17:$B$21,2,FALSE)),\"\")","v":""},{"$f":"IFERROR(VLOOKUP(E4,Δεδομένα!$A$24:$B$48,2,FALSE),\"\")","v":""},null,null,{"$f":"IFERROR(E4-H4,\"\")","v":""},{"$f":"IFERROR(VLOOKUP(I4,Δεδομένα!$A$24:$B$48,2,FALSE),\"\")","v":""}]
[{"$f":"Tρωτότητα!B5","v":"Κύμα ψύχους"},{"$f":"Tρωτότητα!K5","v":"Χαμηλή"},null,null,{"$f":"IFERROR((VLOOKUP(C5,Δεδομένα!$A$10:$B$14,2,FALSE))*(VLOOKUP(D5,Δεδομένα!$A$17:$B$21,2,FALSE)),\"\")","v":""},{"$f":"IFERROR(VLOOKUP(E5,Δεδομένα!$A$24:$B$48,2,FALSE),\"\")","v":""},null,null,{"$f":"IFERROR(E5-H5,\"\")","v":""},{"$f":"IFERROR(VLOOKUP(I5,Δεδομένα!$A$24:$B$48,2,FALSE),\"\")","v":""}]
[{"$f":"Tρωτότητα!B6","v":"Παγετός (Αριθμός Ημερών με ΤΝ<0)"},{"$f":"Tρωτότητα!K6","v":"Χαμηλή"},null,null,{"$f":"IFERROR((VLOOKUP(C6,Δεδομένα!$A$10:$B$14,2,FALSE))*(VLOOKUP(D6,Δεδομένα!$A$17:$B$21,2,FALSE)),\"\")","v":""},{"$f":"IFERROR(VLOOKUP(E6,Δεδομένα!$A$24:$B$48,2,FALSE),\"\")","v":""},null,null,"",{"$f":"IFERROR(VLOOKUP(I6,Δεδομένα!$A$24:$B$48,2,FALSE),\"\")","v":""}]
[{"$f":"Tρωτότητα!B7","v":"Δασική πυρκαγιά "},{"$f":"Tρωτότητα!K7","v":"Χαμηλή"},null,null,{"$f":"IFERROR((VLOOKUP(C7,Δεδομένα!$A$10:$B$14,2,FALSE))*(VLOOKUP(D7,Δεδομένα!$A$17:$B$21,2,FALSE)),\"\")","v":""},{"$f":"IFERROR(VLOOKUP(E7,Δεδομένα!$A$24:$B$48,2,FALSE),\"\")","v":""},null,null,"",{"$f":"IFERROR(VLOOKUP(I7,Δεδομένα!$A$24:$B$48,2,FALSE),\"\")","v":""}]
[{"$f":"Tρωτότητα!B8","v":"Κυκλώνας, Iσχυρές Καταιγίδες, τυφώνας"},{"$f":"Tρωτότητα!K8","v":"Χαμηλή"},null,null,{"$f":"IFERROR((VLOOKUP(C8,Δεδομένα!$A$10:$B$14,2,FALSE))*(VLOOKUP(D8,Δεδομένα!$A$17:$B$21,2,FALSE)),\"\")","v":""},{"$f":"IFERROR(VLOOKUP(E8,Δεδομένα!$A$24:$B$48,2,FALSE),\"\")","v":""},null,null,"",{"$f":"IFERROR(VLOOKUP(I8,Δεδομένα!$A$24:$B$48,2,FALSE),\"\")","v":""}]
[{"$f":"Tρωτότητα!B9","v":"Θύελλα (περιλαμβάνονται  χιονοθύελλες, θύελλες σκόνης)"},{"$f":"Tρωτότητα!K9","v":"Χαμηλή"},null,null,{"$f":"IFERROR((VLOOKUP(C9,Δεδομένα!$A$10:$B$14,2,FALSE))*(VLOOKUP(D9,Δεδομένα!$A$17:$B$21,2,FALSE)),\"\")","v":""},{"$f":"IFERROR(VLOOKUP(E9,Δεδομένα!$A$24:$B$48,2,FALSE),\"\")","v":""},null,null,"",{"$f":"IFERROR(VLOOKUP(I9,Δεδομένα!$A$24:$B$48,2,FALSE),\"\")","v":""}]
[{"$f":"Tρωτότητα!B10","v":"Ανεμοστρόβιλος/Θυελλώδεις Άνεμοι"},{"$f":"Tρωτότητα!K10","v":"Χαμηλή"},null,null,{"$f":"IFERROR((VLOOKUP(C10,Δεδομένα!$A$10:$B$14,2,FALSE))*(VLOOKUP(D10,Δεδομένα!$A$17:$B$21,2,FALSE)),\"\")","v":""},{"$f":"IFERROR(VLOOKUP(E10,Δεδομένα!$A$24:$B$48,2,FALSE),\"\")","v":""},null,null,"",{"$f":"IFERROR(VLOOKUP(I10,Δεδομένα!$A$24:$B$48,2,FALSE),\"\")","v":""}]
[{"$f":"Tρωτότητα!B11","v":"Ξηρασία "},{"$f":"Tρωτότητα!K11","v":"Χαμηλή"},null,null,{"$f":"IFERROR((VLOOKUP(C11,Δεδομένα!$A$10:$B$14,2,FALSE))*(VLOOKUP(D11,Δεδομένα!$A$17:$B$21,2,FALSE)),\"\")","v":""},{"$f":"IFERROR(VLOOKUP(E11,Δεδομένα!$A$24:$B$48,2,FALSE),\"\")","v":""},null,null,"",{"$f":"IFERROR(VLOOKUP(I11,Δεδομένα!$A$24:$B$48,2,FALSE),\"\")","v":""}]
[{"$f":"Tρωτότητα!B12","v":"Ισχυρός υετός (βροχή, χαλάζι, χιόνι/πάγος)"},{"$f":"Tρωτότητα!K12","v":"Χαμηλή"},null,null,{"$f":"IFERROR((VLOOKUP(C12,Δεδομένα!$A$10:$B$14,2,FALSE))*(VLOOKUP(D12,Δεδομένα!$A$17:$B$21,2,FALSE)),\"\")","v":""},{"$f":"IFERROR(VLOOKUP(E12,Δεδομένα!$A$24:$B$48,2,FALSE),\"\")","v":""},null,null,"",{"$f":"IFERROR(VLOOKUP(I12,Δεδομένα!$A$24:$B$48,2,FALSE),\"\")","v":""}]
[{"$f":"Tρωτότητα!B13","v":"Πλημμύρα (σε παράκτιες περιοχές, ποτάμια, λόγω βροχής, υπόγεια ύδατα)"},{"$f":"Tρωτότητα!K13","v":"Χαμηλή"},null,null,{"$f":"IFERROR((VLOOKUP(C13,Δεδομένα!$A$10:$B$14,2,FALSE))*(VLOOKUP(D13,Δεδομένα!$A$17:$B$21,2,FALSE)),\"\")","v":""},{"$f":"IFERROR(VLOOKUP(E13,Δεδομένα!$A$24:$B$48,2,FALSE),\"\")","v":""},null,null,"",{"$f":"IFERROR(VLOOKUP(I13,Δεδομένα!$A$24:$B$48,2,FALSE),\"\")","v":""}]
[{"$f":"Tρωτότητα!B14","v":"Κατολίσθηση/Διάβρωση του εδάφους"},{"$f":"Tρωτότητα!K14","v":"Χαμηλή"},null,null,{"$f":"IFERROR((VLOOKUP(C14,Δεδομένα!$A$10:$B$14,2,FALSE))*(VLOOKUP(D14,Δεδομένα!$A$17:$B$21,2,FALSE)),\"\")","v":""},{"$f":"IFERROR(VLOOKUP(E14,Δεδομένα!$A$24:$B$48,2,FALSE),\"\")","v":""},null,null,"",{"$f":"IFERROR(VLOOKUP(I14,Δεδομένα!$A$24:$B$48,2,FALSE),\"\")","v":""}]
[{"$f":"Tρωτότητα!B15","v":"Καθίζηση"},{"$f":"Tρωτότητα!K15","v":"Χαμηλή"},null,null,{"$f":"IFERROR((VLOOKUP(C15,Δεδομένα!$A$10:$B$14,2,FALSE))*(VLOOKUP(D15,Δεδομένα!$A$17:$B$21,2,FALSE)),\"\")","v":""},{"$f":"IFERROR(VLOOKUP(E15,Δεδομένα!$A$24:$B$48,2,FALSE),\"\")","v":""},null,null,"",{"$f":"IFERROR(VLOOKUP(I15,Δεδομένα!$A$24:$B$48,2,FALSE),\"\")","v":""}]
[{"$f":"Tρωτότητα!B16","v":"Μεταβολή της μέσης θερμοκρασίας του αέρα "},{"$f":"Tρωτότητα!K16","v":"Χαμηλή"},null,null,{"$f":"IFERROR((VLOOKUP(C16,Δεδομένα!$A$10:$B$14,2,FALSE))*(VLOOKUP(D16,Δεδομένα!$A$17:$B$21,2,FALSE)),\"\")","v":""},{"$f":"IFERROR(VLOOKUP(E16,Δεδομένα!$A$24:$B$48,2,FALSE),\"\")","v":""},null,null,"",{"$f":"IFERROR(VLOOKUP(I16,Δεδομένα!$A$24:$B$48,2,FALSE),\"\")","v":""}]
[{"$f":"Tρωτότητα!B17","v":"Αστική θερμονησίδα"},{"$f":"Tρωτότητα!K17","v":"Χαμηλή"},null,null,{"$f":"IFERROR((VLOOKUP(C17,Δεδομένα!$A$10:$B$14,2,FALSE))*(VLOOKUP(D17,Δεδομένα!$A$17:$B$21,2,FALSE)),\"\")","v":""},{"$f":"IFERROR(VLOOKUP(E17,Δεδομένα!$A$24:$B$48,2,FALSE),\"\")","v":""},null,null,"",{"$f":"IFERROR(VLOOKUP(I17,Δεδομένα!$A$24:$B$48,2,FALSE),\"\")","v":""}]
[{"$f":"Tρωτότητα!B18","v":"Θερμική καταπόνηση "},{"$f":"Tρωτότητα!K18","v":"Χαμηλή"},null,null,{"$f":"IFERROR((VLOOKUP(C18,Δεδομένα!$A$10:$B$14,2,FALSE))*(VLOOKUP(D18,Δεδομένα!$A$17:$B$21,2,FALSE)),\"\")","v":""},{"$f":"IFERROR(VLOOKUP(E18,Δεδομένα!$A$24:$B$48,2,FALSE),\"\")","v":""},null,null,"",{"$f":"IFERROR(VLOOKUP(I18,Δεδομένα!$A$24:$B$48,2,FALSE),\"\")","v":""}]
[{"$f":"Tρωτότητα!B19","v":"Μεταβλητότητα της θερμοκρασίας"},{"$f":"Tρωτότητα!K19","v":"Χαμηλή"},null,null,{"$f":"IFERROR((VLOOKUP(C19,Δεδομένα!$A$10:$B$14,2,FALSE))*(VLOOKUP(D19,Δεδομένα!$A$17:$B$21,2,FALSE)),\"\")","v":""},{"$f":"IFERROR(VLOOKUP(E19,Δεδομένα!$A$24:$B$48,2,FALSE),\"\")","v":""},null,null,"",{"$f":"IFERROR(VLOOKUP(I19,Δεδομένα!$A$24:$B$48,2,FALSE),\"\")","v":""}]
[{"$f":"Tρωτότητα!B20","v":"Μεταβολή της ηλιακής ακτινοβολίας "},{"$f":"Tρωτότητα!K20","v":"Χαμηλή"},null,null,{"$f":"IFERROR((VLOOKUP(C20,Δεδομένα!$A$10:$B$14,2,FALSE))*(VLOOKUP(D20,Δεδομένα!$A$17:$B$21,2,FALSE)),\"\")","v":""},{"$f":"IFERROR(VLOOKUP(E20,Δεδομένα!$A$24:$B$48,2,FALSE),\"\")","v":""},null,null,"",{"$f":"IFERROR(VLOOKUP(I20,Δεδομένα!$A$24:$B$48,2,FALSE),\"\")","v":""}]
[{"$f":"Tρωτότητα!B21","v":"Μεταβολή χαρακτηριστικών των ανέμων"},{"$f":"Tρωτότητα!K21","v":"Χαμηλή"},null,null,{"$f":"IFERROR((VLOOKUP(C21,Δεδομένα!$A$10:$B$14,2,FALSE))*(VLOOKUP(D21,Δεδομένα!$A$17:$B$21,2,FALSE)),\"\")","v":""},{"$f":"IFERROR(VLOOKUP(E21,Δεδομένα!$A$24:$B$48,2,FALSE),\"\")","v":""},null,null,"",{"$f":"IFERROR(VLOOKUP(I21,Δεδομένα!$A$24:$B$48,2,FALSE),\"\")","v":""}]
[{"$f":"Tρωτότητα!B22","v":"Μεταβολή χαρακτηριστικών και τύπων υετού (βροχή, χαλάζι, χιόνι/πάγος)"},{"$f":"Tρωτότητα!K22","v":"Χαμηλή"},null,null,{"$f":"IFERROR((VLOOKUP(C22,Δεδομένα!$A$10:$B$14,2,FALSE))*(VLOOKUP(D22,Δεδομένα!$A$17:$B$21,2,FALSE)),\"\")","v":""},{"$f":"IFERROR(VLOOKUP(E22,Δεδομένα!$A$24:$B$48,2,FALSE),\"\")","v":""},null,null,"",{"$f":"IFERROR(VLOOKUP(I22,Δεδομένα!$A$24:$B$48,2,FALSE),\"\")","v":""}]
[{"$f":"Tρωτότητα!B23","v":"Μεταβλητότητα υετού ή υδρολογική μεταβλητότητα"},{"$f":"Tρωτότητα!K23","v":"Χαμηλή"},null,null,{"$f":"IFERROR((VLOOKUP(C23,Δεδομένα!$A$10:$B$14,2,FALSE))*(VLOOKUP(D23,Δεδομένα!$A$17:$B$21,2,FALSE)),\"\")","v":""},{"$f":"IFERROR(VLOOKUP(E23,Δεδομένα!$A$24:$B$48,2,FALSE),\"\")","v":""},null,null,"",{"$f":"IFERROR(VLOOKUP(I23,Δεδομένα!$A$24:$B$48,2,FALSE),\"\")","v":""}]
[{"$f":"Tρωτότητα!B24","v":"Μεταβολή της μέσης θερμοκρασίας του νερού σε υδάτινα σώματα"},{"$f":"Tρωτότητα!K24","v":"Χαμηλή"},null,null,{"$f":"IFERROR((VLOOKUP(C24,Δεδομένα!$A$10:$B$14,2,FALSE))*(VLOOKUP(D24,Δεδομένα!$A$17:$B$21,2,FALSE)),\"\")","v":""},{"$f":"IFERROR(VLOOKUP(E24,Δεδομένα!$A$24:$B$48,2,FALSE),\"\")","v":""},null,null,"",{"$f":"IFERROR(VLOOKUP(I24,Δεδομένα!$A$24:$B$48,2,FALSE),\"\")","v":""}]
[{"$f":"Tρωτότητα!B25","v":"Οξίνιση/αλατότητα του θαλάσσιου ύδατος"},{"$f":"Tρωτότητα!K25","v":"Χαμηλή"},null,null,{"$f":"IFERROR((VLOOKUP(C25,Δεδομένα!$A$10:$B$14,2,FALSE))*(VLOOKUP(D25,Δεδομένα!$A$17:$B$21,2,FALSE)),\"\")","v":""},{"$f":"IFERROR(VLOOKUP(E25,Δεδομένα!$A$24:$B$48,2,FALSE),\"\")","v":""},null,null,"",{"$f":"IFERROR(VLOOKUP(I25,Δεδομένα!$A$24:$B$48,2,FALSE),\"\")","v":""}]
[{"$f":"Tρωτότητα!B26","v":"Διείσδυση αλμυρού νερού, υφαλμύρινση επιφανειακών & υπόγειων υδάτων"},{"$f":"Tρωτότητα!K26","v":"Χαμηλή"},null,null,{"$f":"IFERROR((VLOOKUP(C26,Δεδομένα!$A$10:$B$14,2,FALSE))*(VLOOKUP(D26,Δεδομένα!$A$17:$B$21,2,FALSE)),\"\")","v":""},{"$f":"IFERROR(VLOOKUP(E26,Δεδομένα!$A$24:$B$48,2,FALSE),\"\")","v":""},null,null,"",{"$f":"IFERROR(VLOOKUP(I26,Δεδομένα!$A$24:$B$48,2,FALSE),\"\")","v":""}]
[{"$f":"Tρωτότητα!B27","v":"Άνοδος της στάθμης της θάλασσας"},{"$f":"Tρωτότητα!K27","v":"Χαμηλή"},null,null,{"$f":"IFERROR((VLOOKUP(C27,Δεδομένα!$A$10:$B$14,2,FALSE))*(VLOOKUP(D27,Δεδομένα!$A$17:$B$21,2,FALSE)),\"\")","v":""},{"$f":"IFERROR(VLOOKUP(E27,Δεδομένα!$A$24:$B$48,2,FALSE),\"\")","v":""},null,null,"",{"$f":"IFERROR(VLOOKUP(I27,Δεδομένα!$A$24:$B$48,2,FALSE),\"\")","v":""}]
[{"$f":"Tρωτότητα!B28","v":"Διαθεσιμότητα και καταπόνηση υδάτινων πόρων"},{"$f":"Tρωτότητα!K28","v":"Χαμηλή"},null,null,{"$f":"IFERROR((VLOOKUP(C28,Δεδομένα!$A$10:$B$14,2,FALSE))*(VLOOKUP(D28,Δεδομένα!$A$17:$B$21,2,FALSE)),\"\")","v":""},{"$f":"IFERROR(VLOOKUP(E28,Δεδομένα!$A$24:$B$48,2,FALSE),\"\")","v":""},null,null,"",{"$f":"IFERROR(VLOOKUP(I28,Δεδομένα!$A$24:$B$48,2,FALSE),\"\")","v":""}]
[{"$f":"Tρωτότητα!B29","v":"Διάβρωση των ακτών"},{"$f":"Tρωτότητα!K29","v":"Χαμηλή"},null,null,{"$f":"IFERROR((VLOOKUP(C29,Δεδομένα!$A$10:$B$14,2,FALSE))*(VLOOKUP(D29,Δεδομένα!$A$17:$B$21,2,FALSE)),\"\")","v":""},{"$f":"IFERROR(VLOOKUP(E29,Δεδομένα!$A$24:$B$48,2,FALSE),\"\")","v":""},null,null,"",{"$f":"IFERROR(VLOOKUP(I29,Δεδομένα!$A$24:$B$48,2,FALSE),\"\")","v":""}]
[{"$f":"Tρωτότητα!B30","v":"Υποβάθμιση του εδάφους, μεταβολή της περιεκτικότητας αλάτων, ερημοποίηση"},{"$f":"Tρωτότητα!K30","v":"Χαμηλή"},null,null,{"$f":"IFERROR((VLOOKUP(C30,Δεδομένα!$A$10:$B$14,2,FALSE))*(VLOOKUP(D30,Δεδομένα!$A$17:$B$21,2,FALSE)),\"\")","v":""},{"$f":"IFERROR(VLOOKUP(E30,Δεδομένα!$A$24:$B$48,2,FALSE),\"\")","v":""},null,null,"",{"$f":"IFERROR(VLOOKUP(I30,Δεδομένα!$A$24:$B$48,2,FALSE),\"\")","v":""}]
[{"$f":"Tρωτότητα!B31","v":"Αλλαγές στη διάρκεια των καλλιεργητικών περιόδων"},{"$f":"Tρωτότητα!K31","v":"Χαμηλή"},null,null,{"$f":"IFERROR((VLOOKUP(C31,Δεδομένα!$A$10:$B$14,2,FALSE))*(VLOOKUP(D31,Δεδομένα!$A$17:$B$21,2,FALSE)),\"\")","v":""},{"$f":"IFERROR(VLOOKUP(E31,Δεδομένα!$A$24:$B$48,2,FALSE),\"\")","v":""},null,null,"",{"$f":"IFERROR(VLOOKUP(I31,Δεδομένα!$A$24:$B$48,2,FALSE),\"\")","v":""}]
[{"$f":"Tρωτότητα!B32","v":"Παρακαλώ προσθέστε…"},{"$f":"Tρωτότητα!K32","v":"Χαμηλή"},null,null,{"$f":"IFERROR((VLOOKUP(C32,Δεδομένα!$A$10:$B$14,2,FALSE))*(VLOOKUP(D32,Δεδομένα!$A$17:$B$21,2,FALSE)),\"\")","v":""},{"$f":"IFERROR(VLOOKUP(E32,Δεδομένα!$A$24:$B$48,2,FALSE),\"\")","v":""},null,null,"",{"$f":"IFERROR(VLOOKUP(I32,Δεδομένα!$A$24:$B$48,2,FALSE),\"\")","v":""}]
[{"$f":"Tρωτότητα!B33","v":"Παρακαλώ προσθέστε…"},{"$f":"Tρωτότητα!K33","v":"Χαμηλή"},null,null,{"$f":"IFERROR((VLOOKUP(C33,Δεδομένα!$A$10:$B$14,2,FALSE))*(VLOOKUP(D33,Δεδομένα!$A$17:$B$21,2,FALSE)),\"\")","v":""},{"$f":"IFERROR(VLOOKUP(E33,Δεδομένα!$A$24:$B$48,2,FALSE),\"\")","v":""},null,null,"",{"$f":"IFERROR(VLOOKUP(I33,Δεδομένα!$A$24:$B$48,2,FALSE),\"\")","v":""}]
[{"$f":"Tρωτότητα!B32","v":"Παρακαλώ προσθέστε…"},{"$f":"Tρωτότητα!K34","v":"Χαμηλή"},null,null,{"$f":"IFERROR((VLOOKUP(C34,Δεδομένα!$A$10:$B$14,2,FALSE))*(VLOOKUP(D34,Δεδομένα!$A$17:$B$21,2,FALSE)),\"\")","v":""},{"$f":"IFERROR(VLOOKUP(E34,Δεδομένα!$A$24:$B$48,2,FALSE),\"\")","v":""},null,null,"",{"$f":"IFERROR(VLOOKUP(I34,Δεδομένα!$A$24:$B$48,2,FALSE),\"\")","v":""}]
[{"$f":"Tρωτότητα!B33","v":"Παρακαλώ προσθέστε…"},{"$f":"Tρωτότητα!K35","v":"Χαμηλή"},null,null,{"$f":"IFERROR((VLOOKUP(C35,Δεδομένα!$A$10:$B$14,2,FALSE))*(VLOOKUP(D35,Δεδομένα!$A$17:$B$21,2,FALSE)),\"\")","v":""},{"$f":"IFERROR(VLOOKUP(E35,Δεδομένα!$A$24:$B$48,2,FALSE),\"\")","v":""},null,null,"",{"$f":"IFERROR(VLOOKUP(I35,Δεδομένα!$A$24:$B$48,2,FALSE),\"\")","v":""}]
[{"$f":"Tρωτότητα!B34","v":"Παρακαλώ προσθέστε…"},{"$f":"Tρωτότητα!K36","v":"Χαμηλή"},null,null,{"$f":"IFERROR((VLOOKUP(C36,Δεδομένα!$A$10:$B$14,2,FALSE))*(VLOOKUP(D36,Δεδομένα!$A$17:$B$21,2,FALSE)),\"\")","v":""},{"$f":"IFERROR(VLOOKUP(E36,Δεδομένα!$A$24:$B$48,2,FALSE),\"\")","v":""},null,null,"",{"$f":"IFERROR(VLOOKUP(I36,Δεδομένα!$A$24:$B$48,2,FALSE),\"\")","v":""}]

{"sheet":"Δεδομένα","index":3,"n_rows":48,"n_cols":3,"rows_kept":48,"cut":false,"hidden":false,"merged":[[18,2,18,11],[19,2,19,11],[20,2,20,11],[2,1,2,11],[3,1,3,11],[4,1,4,11],[11,2,11,11],[12,2,12,11],[13,2,13,11],[16,2,16,11],[17,2,17,11],[9,2,9,11],[10,2,10,11]]}
["Ορισμοί τρωτότητας"]
["Χαρακτηρισμός","Περιγραφή"]
["Χαμηλή","Η πηγή κινδύνου έχει μηδενικές (ή αμελητέες) επιπτώσεις"]
["Μέτρια","Η πηγή κινδύνου μπορεί να έχει μικρές επιπτώσεις σε περιουσιακά στοιχεία και διαδικασίες, εισροές, εκροές και μεταφορικές συνδέσεις"]
["Υψηλή","Η πηγή κινδύνου μπορεί να έχει σημαντικές επιπτώσεις σε περιουσιακά στοιχεία και διαδικασίες, εισροές, εκροές και μεταφορικές συνδέσεις"]
[]
["Ορισμοί ανάλυσης διακινδύνευσης"]
["Α. Πιθανότητα εμφάνισης"]
["Κλίμακα","Βαθμολογία","Περιγραφή"]
["Σπάνιο",1,"5% πιθανότητα εμφάνισης στην εκτιμώμενη διάρκεια ζωής της υποδομής"]
["Απίθανο",2,"20% πιθανότητα εμφάνισης στην εκτιμώμενη διάρκεια ζωής της υποδομής"]
["Μέτριο",3,"50% πιθανότητα εμφάνισης στην εκτιμώμενη διάρκεια ζωής της υποδομής"]
["Πιθανό",4,"80% πιθανότητα εμφάνισης στην εκτιμώμενη διάρκεια ζωής της υποδομής"]
["Σχεδόν βέβαιο",5,"95% πιθανότητα εμφάνισης στην εκτιμώμενη διάρκεια ζωής της υποδομής"]
["Β. Κλίμακα συνεπειών"]
["Κλίμακα","Βαθμολογία","Περιγραφή"]
["Αμελητέες",1,"Ελάχιστη επίπτωση η οποία μπορεί να απορροφηθεί από την συνηθισμένη δραστηριότητα"]
["Ήσσονος σημασίας",2,"Δυσμενές γεγονός το οποίο επηρεάζει την κανονική λειτουργία της υποδομής, και οδηγεί σε τοπικές επιπτώσεις"]
["Μέτριες",3,"Ένα σοβαρό συμβάν που απαιτεί πρόσθετες ενέργειες διαχείρισης και έχει σαν αποτέλεσμα μέτριες επιπτώσεις"]
["Σημαντικές",4,"Ένα κρίσιμο γεγονός που απαιτεί έκτακτη δράση, με αποτέλεσμα σημαντικές, εκτεταμένες ή μακροπρόθεσμες επιπτώσεις."]
["Καταστροφικές",5,"Καταστροφικό γεγονός που ενδέχεται να οδηγήσει σε διακοπή λειτουργίας ή κατάρρευση του στοιχείου/δικτύου, προκαλώντας σημαντική βλάβη και εκτεταμένες επιπτώσεις"]
["Γ. Διακινδύνευση"]
["Βαθμολογία","Κλίμακα","Περιγραφή"]
[1,"Αμελητέος","Δεν απαιτούνται μέτρα μείωσης του κινδύνου"]
[2,"Αμελητέος"]
[3,"Αμελητέος"]
[4,"Χαμηλός","Η λήψη μέτρων μείωσης του κινδύνου εξαρτάται από τις περιστάσεις του Έργου"]
[5,"Χαμηλός"]
[6,"Χαμηλός"]
[7,"Μέτριος","Η λήψη μέτρων μείωσης του κινδύνου εξαρτάται από τις περιστάσεις του Έργου"]
[8,"Μέτριος"]
[9,"Μέτριος"]
[10,"Μέτριος"]
[11,"Σημαντικός","Η λήψη μέτρων μείωσης του κινδύνου εξαρτάται από τις περιστάσεις του Έργου"]
[12,"Σημαντικός"]
[13,"Σημαντικός"]
[14,"Σημαντικός"]
[15,"Σημαντικός"]
[16,"Σημαντικός"]
[17,"Σημαντικός"]
[18,"Σημαντικός"]
[19,"Σημαντικός"]
[20,"Πολύ σημαντικός","Απαιτείται η λήψη μέτρων μείωσης του κινδύνου"]
[21,"Πολύ σημαντικός"]
[22,"Πολύ σημαντικός"]
[23,"Πολύ σημαντικός"]
[24,"Πολύ σημαντικός"]
[25,"Πολύ σημαντικός"]